fUSD/lending_fUSD_20250223
["ID","MTS","AMOUNT","RATE_DAILY","PERIOD"]
[354174853,1740328256150,-500.0,0.00018298,2]
[354174854,1740328256159,-500.0,0.00018298,2]
[354174855,1740328256168,-500.0,0.00018298,2]
[354174856,1740328256177,-504.52600746,0.00018298,2]
[354174857,1740328256186,-511.0260665,0.00018298,2]
[354174858,1740328256195,-500.0,0.00018298,2]
[354174859,1740328256205,-500.0,0.00018298,2]
[354174860,1740328256214,-500.0,0.00018298,2]
[354174861,1740328256223,-500.0,0.00018298,2]
[354174862,1740328256233,-503.64362475,0.00018298,2]
[354174863,1740328256242,-500.0,0.00018298,2]
[354174864,1740328256251,-500.0,0.00018298,2]
[354174865,1740328256260,-151.0,0.00018298,2]
[354174866,1740328256270,-500.0,0.00018298,2]
[354174867,1740328256279,-500.0,0.00018298,2]
[354174868,1740328256288,-500.0,0.00018298,2]
[354174869,1740328256297,-500.0,0.00018298,2]
[354174870,1740328256305,-500.0,0.00018298,2]
[354174871,1740328256315,-500.0,0.00018298,2]
[354174872,1740328256323,-500.0,0.00018298,2]
[354174873,1740328256332,-500.0,0.00018298,2]
[354174874,1740328256342,-500.0,0.00018298,2]
[354174875,1740328256352,-500.0,0.00018298,2]
[354174876,1740328256361,-151.0,0.00018298,2]
[354174877,1740328256371,-151.0,0.00018298,2]
[354174878,1740328256380,-500.0,0.00018298,2]
[354174879,1740328256388,-500.0,0.00018298,2]
[354174880,1740328256397,-185.176751,0.00018298,2]
[354174881,1740328256406,-500.0,0.00018298,2]
[354174882,1740328256415,-500.0,0.00018298,2]
[354174883,1740328256424,-500.0,0.00018298,2]
[354174884,1740328256432,-151.0,0.00018298,2]
[354174885,1740328256442,-500.46987433,0.00018298,2]
[354174886,1740328256451,-151.0,0.00018298,2]
[354174887,1740328256461,-185.176751,0.00018298,2]
[354174888,1740328256470,-500.0,0.00018298,2]
[354174889,1740328256481,-500.0,0.00018298,2]
[354174890,1740328256491,-151.0,0.00018298,2]
[354174891,1740328256500,-500.0,0.00018298,2]
[354174892,1740328256509,-500.0,0.00018298,2]
[354174893,1740328256519,-500.0,0.00018298,2]
[354174894,1740328256528,-151.0,0.00018298,2]
[354174895,1740328256537,-532.18793125,0.00018298,2]
[354174896,1740328256546,-500.0,0.00018298,2]
[354174897,1740328256555,-500.0,0.00018298,2]
[354174898,1740328256565,-500.0,0.00018298,2]
[354174899,1740328256574,-500.0,0.00018298,2]
[354174900,1740328256583,-500.0,0.00018298,2]
[354174901,1740328256592,-151.0,0.00018298,2]
[354174902,1740328256601,-151.545962,0.00018298,2]
[354174903,1740328256610,-500.0,0.00018298,2]
[354174904,1740328256621,-500.0,0.00018298,2]
[354174905,1740328256630,-500.0,0.00018298,2]
[354174906,1740328256639,-500.0,0.00018298,2]
[354174907,1740328256648,-500.0,0.00018298,2]
[354174908,1740328256657,-500.0,0.00018298,2]
[354174909,1740328256666,-500.0,0.00018298,2]
[354174910,1740328256675,-500.0,0.00018298,2]
[354174911,1740328256684,-151.0,0.00018298,2]
[354174912,1740328256694,-151.0,0.00018298,2]
[354174913,1740328256704,-500.0,0.00018298,2]
[354174914,1740328256713,-467.45921928,0.00018298,2]
[354174915,1740328256724,-151.0,0.00018298,2]
[354174916,1740328256735,-500.0,0.00018298,2]
[354174917,1740328256744,-500.0,0.00018298,2]
[354174918,1740328256754,-500.0,0.00018298,2]
[354174919,1740328256763,-500.0,0.00018298,2]
[354174920,1740328256773,-151.0,0.00018298,2]
[354174921,1740328256782,-151.0,0.00018298,2]
[354174922,1740328256791,-151.0,0.00018298,2]
[354174923,1740328256800,-500.0,0.00018298,2]
[354174924,1740328256809,-500.0,0.00018298,2]
[354174925,1740328256818,-500.0,0.00018298,2]
[354174926,1740328256827,-500.0,0.00018298,2]
[354174927,1740328256841,-500.0,0.00018298,2]
[354174928,1740328256850,-500.0,0.00018298,2]
[354174929,1740328256859,-500.0,0.00018298,2]
[354174930,1740328256978,-500.0,0.00018298,2]
[354174931,1740328256989,-500.0,0.00018298,2]
[354174932,1740328256998,-155.837388,0.00018298,2]
[354174933,1740328257007,-500.0,0.00018298,2]
[354174934,1740328257016,-500.0,0.00018298,2]
[354174935,1740328257025,-500.0,0.00018298,2]
[354174936,1740328257034,-500.0,0.00018298,2]
[354174937,1740328257043,-155.837388,0.00018298,2]
[354174938,1740328257053,-518.09486876,0.00018298,2]
[354174939,1740328257066,-500.0,0.00018298,2]
[354174940,1740328257076,-500.0,0.00018298,2]
[354174941,1740328257085,-500.0,0.00018298,2]
[354174942,1740328257095,-500.0,0.00018298,2]
[354174943,1740328257104,-151.0,0.00018298,2]
[354174944,1740328257113,-151.0,0.00018298,2]
[354174945,1740328257122,-500.0,0.00018298,2]
[354174946,1740328257131,-500.0,0.00018298,2]
[354174947,1740328257141,-500.0,0.00018298,2]
[354174948,1740328257150,-500.0,0.00018298,2]
[354174949,1740328257159,-500.0,0.00018298,2]
[354174950,1740328257169,-500.0,0.00018298,2]
[354174951,1740328257178,-151.0,0.00018298,2]
[354174952,1740328257187,-151.0,0.00018298,2]
[354174953,1740328257196,-500.0,0.00018298,2]
[354174954,1740328257205,-500.0,0.00018298,2]
[354174955,1740328257215,-500.0,0.00018298,2]
[354174956,1740328257225,-500.0,0.00018298,2]
[354174957,1740328257234,-500.0,0.00018298,2]
[354174958,1740328257243,-500.0,0.00018298,2]
[354174959,1740328257251,-151.0,0.00018298,2]
[354174960,1740328257260,-151.0,0.00018298,2]
[354174961,1740328257269,-500.0,0.00018298,2]
[354174962,1740328257279,-500.0,0.00018298,2]
[354174963,1740328257287,-1748.93,0.00018298,2]
[354174964,1740328257296,-500.0,0.00018298,2]
[354174965,1740328257305,-500.0,0.00018298,2]
[354174966,1740328257314,-500.0,0.00018298,2]
[354174967,1740328257323,-500.0,0.00018298,2]
[354174968,1740328257332,-500.0,0.00018298,2]
[354174969,1740328257341,-500.0,0.00018298,2]
[354174970,1740328257350,-500.0,0.00018298,2]
[354174971,1740328257363,-500.0,0.00018298,2]
[354174972,1740328257373,-500.0,0.00018298,2]
[354174973,1740328257382,-500.0,0.00018298,2]
[354174974,1740328257391,-500.0,0.00018298,2]
[354174975,1740328257400,-109.71519554,0.00018298,2]
[354174976,1740328257432,-390.28480446,0.00018298,2]
[354174977,1740328257441,-93.01184988,0.00018298,2]
[354174978,1740328257451,-1407.49852703,0.00018298,2]
[354174979,1740328257515,-500.0,0.00018171,2]
[354174980,1740328257525,-500.0,0.00018261,2]
[354174981,1740328257534,-3307.56043718,0.00018298,2]
[354174982,1740328257545,-1375.14918591,0.00018298,2]
[354174983,1740328257554,-500.0,0.00018298,2]
[354174984,1740328257563,-500.0,0.00018298,2]
[354174985,1740328257572,-500.0,0.00018298,2]
[354174986,1740328257581,-232.70983407,0.00018298,2]
[354174987,1740328257601,-500.0,0.00018253,2]
[354174988,1740328257610,-271.31867232,0.00018298,2]
[354174989,1740328257619,-314.559844,0.00018298,2]
[354174990,1740328257630,-185.440156,0.00018298,2]
[354174991,1740328257639,-151.0,0.00018298,2]
[354174992,1740328257648,-298.70578825,0.00018298,2]
[354174993,1740328257657,-67.90355574,0.00018298,2]
[354174994,1740328257916,-292.27127564,0.00018244,2]
[354174995,1740328257935,-352.88228635,0.00018244,2]
[354174996,1740328257944,-39.41261742,0.00018298,2]
[354174997,1740328257954,-43.68382684,0.00018298,2]
[354174998,1740328257963,-500.0,0.00018298,2]
[354174999,1740328257972,-500.0,0.00018298,2]
[354175000,1740328257981,-500.0,0.00018298,2]
[354175001,1740328257990,-500.0,0.00018298,2]
[354175002,1740328257998,-500.0,0.00018298,2]
[354175003,1740328258007,-500.0,0.00018298,2]
[354175004,1740328258016,-500.0,0.00018298,2]
[354175005,1740328258025,-500.0,0.00018298,2]
[354175006,1740328258034,-500.0,0.00018298,2]
[354175007,1740328258042,-151.0,0.00018298,2]
[354175008,1740328258051,-151.0,0.00018298,2]
[354175009,1740328258063,-500.0,0.00018298,2]
[354175010,1740328258073,-500.0,0.00018298,2]
[354175011,1740328258082,-500.0,0.00018298,2]
[354175012,1740328258091,-500.0,0.00018298,2]
[354175013,1740328258100,-500.0,0.00018298,2]
[354175014,1740328258110,-162.66269,0.00018298,2]
[354175015,1740328258119,-162.66269,0.00018298,2]
[354175016,1740328258128,-500.0,0.00018298,2]
[354175017,1740328258137,-500.0,0.00018298,2]
[354175018,1740328258148,-500.0,0.00018298,2]
[354175019,1740328258157,-151.0,0.00018298,2]
[354175020,1740328258166,-162.66269,0.00018298,2]
[354175021,1740328258176,-151.0,0.00018298,2]
[354175022,1740328258185,-162.66269,0.00018298,2]
[354175023,1740328258194,-500.0,0.00018298,2]
[354175024,1740328258203,-502.45133147,0.00018298,2]
[354175025,1740328258213,-500.0,0.00018298,2]
[354175026,1740328258222,-500.0,0.00018298,2]
[354175027,1740328258233,-501.68621468,0.00018298,2]
[354175028,1740328258243,-500.0,0.00018298,2]
[354175029,1740328258252,-500.0,0.00018298,2]
[354175030,1740328258262,-500.0,0.00018298,2]
[354175031,1740328258271,-500.0,0.00018298,2]
[354175032,1740328258280,-500.0,0.00018298,2]
[354175033,1740328258289,-500.0,0.00018298,2]
[354175034,1740328258298,-500.0,0.00018298,2]
[354175035,1740328258307,-500.0,0.00018298,2]
[354175036,1740328258315,-1170.857873,0.00018298,2]
[354175037,1740328258325,-1170.857873,0.00018298,2]
[354175038,1740328258334,-500.0,0.00018298,2]
[354175039,1740328258342,-500.0,0.00018298,2]
[354175040,1740328258351,-1170.857873,0.00018298,2]
[354175041,1740328258360,-300.0,0.00018298,2]
[354175042,1740328258369,-1170.857873,0.00018298,2]
[354175043,1740328258379,-273.63164,0.00018298,2]
[354175044,1740328258387,-273.63164,0.00018298,2]
[354175045,1740328258396,-500.0,0.00018298,2]
[354175046,1740328258405,-500.0,0.00018298,2]
[354175047,1740328258415,-273.63164,0.00018298,2]
[354175048,1740328258424,-273.63164,0.00018298,2]
[354175049,1740328258433,-1001.22704423,0.00018299,2]
[354175050,1740328258445,-312.77295577,0.00018299,2]
[354175051,1740328258454,-152.48103813,0.00018299,2]
[354175052,1740328258464,-500.0,0.00018299,2]
[354175053,1740328258474,-500.0,0.00018299,2]
[354175054,1740328258484,-500.0,0.00018299,2]
[354175055,1740328258493,-504.24,0.00018299,2]
[354175056,1740328258502,-500.0,0.00018299,2]
[354175057,1740328258511,-500.0,0.00018299,2]
[354175058,1740328258520,-500.0,0.00018299,2]
[354175059,1740328258529,-500.0,0.00018299,2]
[354175060,1740328258538,-500.0,0.00018299,2]
[354175061,1740328258547,-500.0,0.00018299,2]
[354175062,1740328258556,-93.22629493,0.00018299,2]
[354175063,1740328258568,-406.77370507,0.00018299,2]
[354175064,1740328258577,-500.0,0.00018299,2]
[354175065,1740328258586,-500.0,0.00018299,2]
[354175066,1740328258595,-319.76451866,0.00018299,2]
[354175067,1740328258604,-500.0,0.00018299,2]
[354175068,1740328258614,-500.0,0.00018299,2]
[354175069,1740328258623,-500.0,0.00018299,2]
[354175070,1740328258632,-500.0,0.00018299,2]
[354175071,1740328258642,-459.79427003,0.00018299,2]
[354175072,1740328258650,-500.0,0.00018299,2]
[354175073,1740328258659,-500.0,0.00018299,2]
[354175074,1740328258668,-500.0,0.00018299,2]
[354175075,1740328258678,-500.0,0.00018299,2]
[354175076,1740328258687,-500.3196977,0.00018299,2]
[354175077,1740328258696,-500.0,0.00018299,2]
[354175078,1740328258705,-500.0,0.00018299,2]
[354175079,1740328258714,-500.0,0.00018299,2]
[354175080,1740328258723,-643.57542145,0.00018299,2]
[354175081,1740328258732,-500.0,0.00018299,2]
[354175082,1740328258742,-500.0,0.00018299,2]
[354175083,1740328258750,-500.0,0.00018299,2]
[354175084,1740328258760,-489.77238709,0.00018299,2]
[354175085,1740328259206,-371.96053076,0.00018244,2]
[354175086,1740328259215,-518.1373565,0.00018298,2]
[354175087,1740328259224,-10.22761291,0.00018299,2]
[354175088,1740328259234,-500.0,0.00018299,2]
[354175089,1740328259243,-500.0,0.00018299,2]
[354175090,1740328259251,-500.0,0.00018299,2]
[354175091,1740328259260,-170.09343251,0.00018299,2]
[354175092,1740328259272,-329.90656749,0.00018299,2]
[354175093,1740328259280,-620.48906351,0.00018299,2]
[354175094,1740328259289,-500.0,0.00018299,2]
[354175095,1740328259298,-372.38833686,0.00018299,2]
[354175096,1740328259353,-260.99720703,0.00018299,2]
[354175097,1740328259363,-510.96434589,0.00018299,2]
[354175098,1740328259371,-602.01412707,0.00018299,2]
[354175099,1740328259383,-8.98028195,0.00018299,2]
[354175100,1740328259392,-511.03231627,0.00018299,2]
[354175101,1740328259401,-199.22740176,0.00018299,2]
[354175102,1740328259416,-300.0,0.00018244,2]
[354175103,1740328259441,-200.0,0.00018244,2]
[354175104,1740328259450,-300.77259824,0.00018299,2]
[354175105,1740328259459,-175.11502093,0.00018299,2]
[354175106,1740328259470,-324.88497907,0.00018299,2]
[354175107,1740328259480,-500.0,0.00018299,2]
[354175108,1740328259489,-278.13747171,0.00018299,2]
[354175109,1740328259498,-500.0,0.00018299,2]
[354175110,1740328259507,-500.0,0.00018299,2]
[354175111,1740328259516,-500.0,0.00018299,2]
[354175112,1740328259525,-500.0,0.00018299,2]
[354175113,1740328259533,-500.0,0.00018299,2]
[354175114,1740328259542,-500.0,0.00018299,2]
[354175115,1740328259551,-500.0,0.00018299,2]
[354175116,1740328259561,-500.0,0.00018299,2]
[354175117,1740328259570,-500.0,0.00018299,2]
[354175118,1740328259579,-500.0,0.00018299,2]
[354175119,1740328259587,-500.0,0.00018299,2]
[354175120,1740328259596,-500.0,0.00018299,2]
[354175121,1740328259605,-500.74209169,0.00018299,2]
[354175122,1740328259614,-500.0,0.00018299,2]
[354175123,1740328259623,-500.0,0.00018299,2]
[354175124,1740328259631,-500.0,0.00018299,2]
[354175125,1740328259641,-300.0,0.00018299,2]
[354175126,1740328259650,-500.0,0.00018299,2]
[354175127,1740328259658,-116.16578478,0.00018299,2]
[354175128,1740328259670,-383.83421522,0.00018299,2]
[354175129,1740328259678,-5.79702845,0.00018299,2]
[354175135,1740328437279,921.0,0.0002,120]
[354175136,1740328534551,2973.52541207,0.0002,120]
[354175137,1740328535126,196.98,8.767e-05,2]
[354175667,1740329167432,28867.59872181,0.00020377,120]
[354175668,1740329167667,28867.59872181,0.00020377,120]
[354175669,1740329167967,28867.59872181,0.00020377,120]
[354175670,1740329168308,28867.59872181,0.00020377,120]
[354175671,1740329174759,42209.97507526,0.00020377,120]
[354175672,1740329175116,42209.97507526,0.00020377,120]
[354175673,1740329175426,42209.97507526,0.00020377,120]
[354175674,1740329175738,42209.97507526,0.00020377,120]
[354175675,1740329181620,507.52346857,0.00020377,120]
[354175676,1740329181802,507.52346857,0.00020377,120]
[354175677,1740329182120,507.52346857,0.00020377,120]
[354175678,1740329182442,507.52346857,0.00020377,120]
[354175679,1740329188208,207.91069732,0.00020377,120]
[354175680,1740329188304,207.91069732,0.00020377,120]
[354175681,1740329188440,207.91069732,0.00020377,120]
[354175682,1740329188753,207.91069732,0.00020377,120]
[354175683,1740329195749,200.0,0.00020377,120]
[354175684,1740329196056,200.0,0.00020377,120]
[354175685,1740329196358,200.0,0.00020377,120]
[354175686,1740329204020,370.44469317,0.00020377,120]
[354175687,1740329204358,370.44469317,0.00020377,120]
[354175688,1740329204668,370.44469317,0.00020377,120]
[354175689,1740329204963,370.44469317,0.00020377,120]
[354175690,1740329212192,15338.14092578,0.00020377,120]
[354175691,1740329212557,15338.14092578,0.00020377,120]
[354175692,1740329212881,15338.14092578,0.00020377,120]
[354175693,1740329213221,15338.14092578,0.00020377,120]
[354175694,1740329224069,39536.01110269,0.00020377,120]
[354175695,1740329224432,39536.01110269,0.00020377,120]
[354175696,1740329224753,39536.01110269,0.00020377,120]
[354175697,1740329225076,39536.01110269,0.00020377,120]
[354175698,1740329231574,32560.89482378,0.00020377,120]
[354175699,1740329231913,32560.89482378,0.00020377,120]
[354175700,1740329232229,32560.89482378,0.00020377,120]
[354175701,1740329232541,32560.89482378,0.00020377,120]
[354175702,1740329244551,200.0,0.00020377,120]
[354175703,1740329244848,200.0,0.00020377,120]
[354175704,1740329245151,200.0,0.00020377,120]
[354175705,1740329285209,200.0,0.00020377,120]
[354175706,1740329285591,200.0,0.00020377,120]
[354175707,1740329304456,200.0,0.00020379,120]
[354175708,1740329304752,200.0,0.00020379,120]
[354175709,1740329344924,23569.63144376,0.00020379,120]
[354175710,1740329345237,23569.63144376,0.00020379,120]
[354175711,1740329345687,23569.63144376,0.00020379,120]
[354175712,1740329345821,23569.63144376,0.00020379,120]
[354175723,1740329432346,-200.903618,0.00010958,2]
[354175724,1740329432356,-164.797565,0.00010958,2]
[354175725,1740329432365,-157.423439,0.00010958,2]
[354175726,1740329432375,-217.110896,0.00010958,2]
[354175727,1740329432385,-200.903618,0.00011041,2]
[354175728,1740329432394,-217.110896,0.00011041,2]
[354175729,1740329432404,-200.903618,0.00011123,2]
[354175730,1740329432413,-217.110896,0.00011123,2]
[354175731,1740329432423,-200.903618,0.00011205,2]
[354175732,1740329432432,-217.110896,0.00011205,2]
[354175733,1740329432442,-200.903618,0.00011287,2]
[354175734,1740329432451,-217.110896,0.00011287,2]
[354175735,1740329432461,-200.903618,0.00011369,2]
[354175736,1740329432470,-217.110896,0.00011369,2]
[354175737,1740329432480,-156.97,0.00013699,2]
[354175738,1740329432493,-730.99,0.00014726,2]
[354175739,1740329432503,-631.17,0.00016467,7]
[354175740,1740329432513,-150.0,0.0001657,2]
[354175741,1740329432523,-150.0,0.0001657,2]
[354175742,1740329432533,-155.54,0.00016659,2]
[354175743,1740329432542,-200.0,0.00016701,2]
[354175744,1740329432552,-631.17,0.00016741,7]
[354175745,1740329432563,-150.0,0.00016754,2]
[354175746,1740329432573,-198.7,0.00016812,2]
[354175747,1740329432583,-250.0,0.0001683,2]
[354175748,1740329432592,-256.3,0.00016841,2]
[354175749,1740329432601,-1000.0,0.00016899,2]
[354175750,1740329432611,-16208.77,0.00016937,2]
[354175751,1740329432620,-150.0,0.00016938,2]
[354175752,1740329432630,-200.0,0.00016969,2]
[354175753,1740329432639,-494.06,0.00016979,2]
[354175754,1740329432649,-494.39,0.00016979,2]
[354175755,1740329432658,-498.95,0.00016979,2]
[354175756,1740329432667,-497.74,0.00016979,2]
[354175757,1740329432676,-638.0,0.0001698,2]
[354175758,1740329432686,-172.0624578,0.0001698,2]
[354175759,1740329432698,-398.0575422,0.0001698,2]
[354175760,1740329432707,-914.138,0.0001698,2]
[354175761,1740329432716,-538.531,0.0001698,2]
[354175762,1740329432725,-1424.0,0.0001698,2]
[354175763,1740329432734,-1014.202,0.0001698,2]
[354175764,1740329432743,-3920.0,0.0001698,2]
[354175765,1740329432752,-150.0,0.0001698,2]
[354175766,1740329432761,-730.99,0.00016989,2]
[354175767,1740329432770,-329.29,0.00017013,2]
[354175768,1740329432779,-631.17,0.00017015,7]
[354175769,1740329432788,-150.0,0.0001703,2]
[354175770,1740329432798,-150.0,0.00017122,2]
[354175771,1740329432807,-154.01,0.00017207,2]
[354175772,1740329432817,-631.17,0.00017289,7]
[354175773,1740329432826,-150.0,0.00017306,2]
[354175774,1740329432835,-166.21,0.00017311,2]
[354175775,1740329432844,-154.01,0.00017328,2]
[354175776,1740329432854,-154.01,0.00017448,2]
[354175777,1740329432863,-150.0,0.0001749,2]
[354175778,1740329432873,-150.0,0.0001749,2]
[354175779,1740329432883,-115.58662606,0.000175,2]
[354175781,1740329432895,-1166.16607264,0.000175,2]
[354175786,1740329432924,-6987.42598946,0.000175,2]
[354175788,1740329433044,-220.0,0.00017517,2]
[354175790,1740329433054,-631.17,0.00017563,7]
[354175792,1740329433064,-154.01,0.00017569,2]
[354175794,1740329433075,-157.19574937,0.00017616,2]
[354175796,1740329433084,-121.05399633,0.00017616,2]
[354175799,1740329433101,-34.17936267,0.00017616,2]
[354175801,1740329433112,-688.05998798,0.00017671,2]
[354175809,1740329433184,-299.39001202,0.00017671,2]
[354175811,1740329433194,-150.0,0.00017671,2]
[354175813,1740329433203,-84.13761877,0.00017671,2]
[354175817,1740329433226,-65.86238123,0.00017671,2]
[354175819,1740329433235,-150.0,0.00017671,2]
[354175820,1740329433245,-300.0,0.00017671,2]
[354175822,1740329433255,-164.53919471,0.00017671,2]
[354175824,1740329433266,-274.84080529,0.00017671,2]
[354175826,1740329433276,-987.45,0.00017671,2]
[354175828,1740329433285,-150.0,0.00017671,2]
[354175830,1740329433295,-150.0,0.00017671,2]
[354175832,1740329433304,-150.0,0.00017671,2]
[354175834,1740329433314,-439.38,0.00017671,2]
[354175836,1740329433323,-439.38,0.00017671,2]
[354175838,1740329433332,-150.0,0.00017671,2]
[354175840,1740329433342,-985.1,0.00017671,2]
[354175842,1740329433351,-150.0,0.00017671,2]
[354175844,1740329433361,-150.0,0.00017671,2]
[354175846,1740329433370,-150.0,0.00017671,2]
[354175848,1740329433380,-439.38,0.00017671,2]
[354175850,1740329433390,-150.0,0.00017671,2]
[354175852,1740329433399,-150.0,0.00017671,2]
[354175854,1740329433409,-150.0,0.00017671,2]
[354175856,1740329433418,-150.0,0.00017671,2]
[354175858,1740329433428,-439.38,0.00017671,2]
[354175860,1740329433438,-150.0,0.00017675,2]
[354175862,1740329433448,-154.01,0.00017689,2]
[354175864,1740329433458,-182.46260651,0.0001769,2]
[354175866,1740329433468,-2867.22107893,0.0001769,2]
[354175873,1740329433523,-1054.27994001,0.0001769,2]
[354175924,1740329438505,-323.30846529,0.000162,5]
[354175925,1740329438517,-226.69153471,0.000162,5]
[354175926,1740329438527,-631.17,0.00016467,7]
[354175927,1740329438538,-631.17,0.00016467,7]
[354175928,1740329438548,-631.17,0.00016467,7]
[354175929,1740329438557,-631.17,0.00016741,7]
[354175930,1740329438568,-631.17,0.00017015,7]
[354175931,1740329438578,-631.17,0.00017289,7]
[354175932,1740329438588,-151.9,0.00017479,2]
[354175933,1740329438597,-631.17,0.00017563,7]
[354175935,1740329438607,-1353.02898106,0.0001769,2]
[354175936,1740329438617,-4444.09720423,0.0001769,2]
[354175989,1740329440428,-422.535,0.00016979,2]
[354175990,1740329440692,-73.265,0.00016979,2]
[354175991,1740329440701,-830.43279577,0.0001769,2]
[354175992,1740329440711,-180.04141742,0.00017699,2]
[354175993,1740329440720,-181.97737782,0.00017699,2]
[354175994,1740329440729,-500.0,0.00017699,2]
[354175995,1740329440738,-500.0,0.00017699,2]
[354175996,1740329440747,-397.44787637,0.00017699,2]
[354175997,1740329440757,-1812.8052958,0.000177,5]
[354175998,1740329440769,-275.5980637,0.000177,5]
[354175999,1740329440780,-947.72946,0.000177,5]
[354176000,1740329440797,-220802.32719299,0.000177,5]
[354176001,1740329440806,-173.02036087,0.000177,2]
[354176002,1740329440815,-1000.0,0.000177,2]
[354176003,1740329440824,-10297937.06011594,0.000177,15]
[354176004,1740329440858,-639.1,0.000177,15]
[354176019,1740329446306,-177.89,0.00013699,2]
[354176020,1740329446316,-369.116,0.0001698,2]
[354176021,1740329446325,-231.42605308,0.00017671,2]
[354176022,1740329446359,-207.95394692,0.00017671,2]
[354176023,1740329446368,-150.0,0.00017671,2]
[354176024,1740329446377,-150.0,0.00017671,2]
[354176025,1740329446386,-232.03086107,0.00017699,2]
[354176026,1740329446395,-218.59853201,0.000177,15]
[354176031,1740329842435,178.4,8.767e-05,2]
[354176044,1740330631639,-550.0,0.0001,2]
[354176045,1740330631648,-210.15775834,0.00010858,2]
[354176046,1740330631658,-1415.29800079,0.00010858,2]
[354176047,1740330631667,-694.88424087,0.00010958,2]
[354176048,1740330631679,-673.50155013,0.00010958,2]
[354176049,1740330631688,-1341.489892,0.00010958,2]
[354176050,1740330631696,-166.121703,0.00010958,2]
[354176051,1740330631706,-157.094355,0.00010958,2]
[354176052,1740330631715,-150.0,0.00011,2]
[354176053,1740330631724,-150.0,0.00011,2]
[354176054,1740330631733,-150.0,0.00011,2]
[354176055,1740330631743,-1368.385791,0.00011041,2]
[354176056,1740330631752,-1341.489892,0.00011041,2]
[354176057,1740330631762,-1368.385791,0.00011123,2]
[354176058,1740330631772,-1341.489892,0.00011123,2]
[354176059,1740330631781,-166.121703,0.00011123,2]
[354176060,1740330631791,-1368.385791,0.00011205,2]
[354176061,1740330631800,-1341.489892,0.00011205,2]
[354176062,1740330631809,-1368.385791,0.00011287,2]
[354176063,1740330631819,-1341.489892,0.00011287,2]
[354176064,1740330631828,-166.121703,0.00011287,2]
[354176065,1740330631838,-1368.385791,0.00011369,2]
[354176066,1740330631847,-1341.489892,0.00011369,2]
[354176067,1740330631858,-600.0,0.00012,2]
[354176068,1740330631868,-159.36,0.00013014,2]
[354176069,1740330631883,-807.51,0.0001335,2]
[354176070,1740330631893,-177.89,0.00013699,2]
[354176071,1740330631904,-2208.0,0.000139,5]
[354176072,1740330631914,-150.0,0.00014099,2]
[354176073,1740330631924,-150.0,0.00014134,2]
[354176074,1740330631935,-150.0,0.00014398,2]
[354176075,1740330631945,-1500.0,0.00014908,2]
[354176076,1740330631955,-1501.89,0.00014928,2]
[354176077,1740330631964,-150.0,0.0001512,2]
[354176078,1740330631974,-150.0,0.00015171,2]
[354176079,1740330631984,-8046.06,0.00015194,2]
[354176080,1740330631994,-250.0,0.00015245,2]
[354176081,1740330632007,-408.11,0.00015252,2]
[354176082,1740330632017,-778.7,0.00015266,2]
[354176083,1740330632027,-2000.0,0.00015387,2]
[354176084,1740330632037,-160.59,0.00015395,2]